Cogmind - Beta 14 @@@ ROGUE MODE // 2024.08.26 @ 22:55:16 Player: Syanka Result: Destroyed by DAS Turret with DAS Cannon Performance ------------- Evolutions (1) 500 Regions Visited (5) 1000 Robots Destroyed (125) 625 Value Destroyed (2883) 2883 Prototype IDs (17) 340 Alien Tech Used (0) 0 Bonus (15) 15 TOTAL SCORE: 5363 Bonus ------- High Alert Combat Kills 252 Friendly Fire -237 Cogmind --------- Core Integrity 0/400 Matter 0/300 Energy 16/100 System Corruption 4% Temperature Cool (0) Movement Core (1500) Ox29 Location -9/Exiles Parts ------- > --- POWER (1) -------- (None) > --- PROPULSION (3) --- (None) > --- UTILITY (3) ------ Huge Storage Unit Improved Light Armor Plating Shield Generator > --- WEAPON (2) ------- Heavy Flail > --- INVENTORY (25) --- Improved Targeting Computer Reflective Plating Datajack Plasma Cutter Peak State ------------ > --- POWER ------------ Light Angular Momentum Engine > --- PROPULSION ------- Light Treads Light Treads Light Treads > --- UTILITY ---------- Huge Storage Unit Experimental Sensor Array Medium Armor Plating > --- WEAPON ----------- Beamcaster Ion Cannon > --- INVENTORY -------- Light Nuclear Core Light Treads Light Treads Light Treads Improved Treads Improved Heat Sink Cooling System Signal Interpreter Improved Terrain Scanner Terrain Scan Processor Improved Targeting Computer Improved Light Armor Plating Improved Light Armor Plating Improved Light Armor Plating Reflective Plating Reflective Plating Reflective Plating Shield Generator Ion Cannon Improved Assault Rifle Rocket Launcher Rocket Launcher Datajack Plasma Cutter Heavy Flail [Rating: 33] Favorites ----------- Power Heavy Ion Engine Engine Heavy Ion Engine Power Core Light Nuclear Core Propulsion Light Treads Treads Light Treads Wheel Wheel Flight Unit Improved Flight Unit Utility Huge Storage Unit Device Cooling System Storage Huge Storage Unit Processor Signal Interpreter Protection Improved Light Armor Plating Weapon Particle Gun Energy Gun Particle Gun Energy Cannon Ion Cannon Ballistic Gun Improved Assault Rifle Launcher Grenade Launcher Special Weapon Plasma Cutter Impact Weapon Heavy Flail Special Melee Weapon Datajack Build | -11 -10 -10 -9 -9 -9 ------- Run | Yrd Mat Min Mat Min Exi Slots Evolved 2 | . . . 2 . . Power . | . . . . . . Propulsion 1 | . . . 1 . . Utility 1 | . . . 1 . . Weapon . | . . . . . . Parts Attached 182 | 9 40 35 51 21 26 Power 13 | 1 3 2 5 1 1 Engine 12 | 1 3 2 5 1 . Core 1 | . . . . . 1 Reactor . | . . . . . . Propulsion 59 | 2 22 14 15 2 4 Treads 41 | 2 12 7 14 2 4 Leg . | . . . . . . Wheel 17 | . 10 7 . . . Hover . | . . . . . . Flight 1 | . . . 1 . . Utility 48 | 3 10 9 9 9 8 Device 25 | 2 6 6 5 4 2 Storage 3 | 1 1 . . . 1 Processor 2 | . . . . 2 . Hackware . | . . . . . . Protection 18 | . 3 3 4 3 5 Artifact . | . . . . . . Weapon 62 | 3 5 10 22 9 13 Energy Gun 19 | 1 1 6 5 2 4 Energy Cannon 9 | . . . 6 2 1 Ballistic Gun 16 | 2 2 . 8 3 1 Ballistic Cannon . | . . . . . . Launcher 10 | . 1 4 2 1 2 Special Weapon 4 | . 1 . . 1 2 Impact Weapon 3 | . . . 1 . 2 Slashing Weapon . | . . . . . . Piercing Weapon . | . . . . . . Special Melee Weapon 1 | . . . . . 1 Unidentified Prototypes 6 | . . . 5 1 . Parts Lost 26 | . . 4 4 . 18 Power 5 | . . 2 1 . 2 Propulsion 9 | . . 1 1 . 7 Utility 7 | . . 1 1 . 5 Weapon 5 | . . . 1 . 4 Highest Loss Streak 14 | . . 2 1 . 14 To Critical Strikes 9 | . . . . . 9 Average Slot Usage (%) 95 | . 100 99 99 99 74 Engine 10 | . 14 13 11 11 5 Treads 24 | . 13 9 32 33 17 Wheel 4 | . 14 18 . . . Device 12 | . 10 12 15 11 10 Storage 11 | . 14 14 11 11 10 Processor 1 | . . . . 2 5 Protection 5 | . 3 1 6 8 6 Energy Gun 8 | . 10 26 5 5 3 Energy Cannon 3 | . . . 4 5 6 Ballistic Gun 9 | . 17 . 11 10 . Peak Build Rating 33 | 7 10 14 24 33 28 Average Rating 18 | 5 9 11 20 27 17 On Entrance 13 | . 7 10 13 24 26 Naked Turns . | . . . . . . Heaviest Build 109 | 11 92 95 103 109 105 Greatest Support 63 | 40 40 40 63 63 63 Greatest Overweight (x) 29 | . 4 8 2 1 29 Average Overweight (x) 2 | . 1 4 1 1 4 Largest Inventory Capacity 25 | 8 25 25 25 25 25 Average Capacity 24 | 7 22 25 25 25 24 Most Carried 25 | 6 20 25 25 25 25 Average Carried 20 | 4 15 23 24 24 15 Final Capacity 25 | 8 25 25 25 25 25 Final Carried 25 | 6 20 22 25 25 4 Class Distribution -------------------- 52% | Mutant 47% | Scavenger-Mutant Dominant Class ---------------- Mutant | -10/Materials Scavenger-Mutant | -10/Mines Scavenger-Mutant | -9/Materials Scavenger-Mutant | -9/Mines Mutant | -9/Exiles Resources | -11 -10 -10 -9 -9 -9 ----------- Run | Yrd Mat Min Mat Min Exi Matter Collected 2701 | 300 494 465 948 484 10 Remotely . | . . . . . . Salvage Created 4175 | 98 524 427 2545 559 22 Parts 261 | 12 26 34 141 48 . Haulers Intercepted 6 | . . . 6 . . Recyclers Shooed 5 | . 4 . 1 . . Parts Field Recycled . | . . . . . . Retrieved Matter . | . . . . . . Parts Self-Destructed . | . . . . . . Prevented . | . . . . . . Kills | -11 -10 -10 -9 -9 -9 ------- Run | Yrd Mat Min Mat Min Exi Combat Hostiles Destroyed 95 | . 9 19 46 14 7 Guns 53 | . 6 7 28 12 . Cannons 14 | . . . 13 . 1 AOE 26 | . 3 11 4 2 6 Classes Destroyed 14 | 2 4 2 5 . 1 Worker 3 | . . 2 . 1 . Builder 3 | . . 1 1 1 . Tunneler 6 | 3 . 1 1 1 . Hauler 6 | . . . 6 . . Recycler 10 | 1 3 1 4 1 . Mechanic 1 | . . . 1 . . Operator 6 | . 2 . 4 . . Watcher 7 | . 2 . 5 . . Swarmer 25 | . 3 12 3 7 . Grunt 50 | . 6 7 32 5 . Brawler 1 | . . . 1 . . Duelist 1 | . . . 1 . . Sentry 11 | . . . 9 2 . Assembled 7 | . . . . . 7 Thug 1 | . . . . 1 . Best Kill Streak 8 | 2 3 7 8 4 7 Combat Bots Only 7 | . 3 5 5 4 7 Max Kills in Single Turn 4 | 1 1 3 2 2 4 Gunslinging 1 | . . . 1 1 . Exploded 4 | . 1 3 1 2 4 Melee . | . . . . . . Uniques/NPCs Destroyed . | . . . . . . Combat | -11 -10 -10 -9 -9 -9 -------- Run | Yrd Mat Min Mat Min Exi Hostile Shots Fired 445 | . 33 51 186 49 126 Missed 105 | . 9 8 50 13 25 Damage Taken 4926 | . 335 567 1654 465 1905 Core 596 | . 89 76 147 32 252 Absorbed by Shields 15 | . . . . . 15 Regen/Repaired (Parts) 172 | . . . 172 . . Core Remaining (%) 67 | 100 . 34 . . . Volleys Fired 398 | 9 70 27 143 122 27 Largest 2 | 2 2 2 2 2 2 Hottest 135 | 40 85 130 130 135 135 Shots Fired 662 | 18 132 44 281 147 40 Gun 465 | 18 129 37 211 50 20 Cannon 175 | . . . 63 96 16 Launcher 21 | . 3 7 7 1 3 Special 1 | . . . . . 1 Kinetic 286 | 18 107 9 95 46 11 Thermal 355 | . 22 28 179 100 26 Explosive 21 | . 3 7 7 1 3 Electromagnetic . | . . . . . . Robot Hit Streak 23 | 6 6 20 23 10 9 Robot Miss Streak 5 | 2 4 2 3 2 5 Penetration Max . | . . . . . . Secondary Targets 3 | . . 1 1 1 . Max Gunslinging Chain 1 | . . 1 1 1 . Shots Hit Robots 423 | 13 73 37 208 35 57 Core Hits 203 | 7 30 29 103 19 15 Critical Kills 2 | 1 1 . . . . Critical Parts Destroyed 5 | . 1 . . . 4 Critical Strikes 15 | 1 2 . 7 . 5 Burn 7 | . . . 7 . . Destroy 3 | 1 2 . . . . Smash 5 | . . . . . 5 Melee Attacks 42 | . . . . . 42 Impact 40 | . . . . . 40 Slashing . | . . . . . . Piercing . | . . . . . . Sneak Attacks 2 | . . . . . 2 Combat Hostiles . | . . . . . . Follow-up Attacks . | . . . . . . Damage Inflicted 10097 | 114 824 1364 4581 887 2327 Guns 4876 | 114 716 487 2598 671 290 Cannons 1399 | . . . 1167 46 186 Explosions 2310 | . 108 877 731 142 452 Melee 1399 | . . . . . 1399 Ramming 113 | . . . 85 28 . Kinetic 2618 | 114 475 61 1183 625 160 Thermal 3657 | . 241 426 2582 92 316 Explosive 2310 | . 108 877 731 142 452 Electromagnetic . | . . . . . . Impact 1399 | . . . . . 1399 Slashing . | . . . . . . Piercing . | . . . . . . Highest Corruption 4 | . . . 4 4 4 Average Corruption 4 | . . . 4 4 4 Corruption Purged . | . . . . . . Corruption Blocked . | . . . . . . Effects 191 | . . . 83 61 47 Message Errors 45 | . . . 15 14 16 Matter Fused 41 | . . . 19 17 5 Heat Flow Errors 33 | . . . 20 7 6 Energy Discharges 23 | . . . 8 9 6 Parts Rejected 1 | . . . 1 . . Parts Fused 3 | . . . 1 . 2 Data Loss (minor) 17 | . . . 5 7 5 Data Loss (major) 11 | . . . 6 2 3 Misfires 8 | . . . 4 1 3 Alerts 4 | . . . 2 2 . Weapon Failures 5 | . . . 2 2 1 Overload Shots . | . . . . . . Overflow Damage 388 | . . 21 50 21 296 Projectiles 23 | . . . 23 . . Explosions 128 | . . 21 21 21 65 Melee 237 | . . . 6 . 231 Knockbacks 3 | . . . . . 3 Impact 3 | . . . . . 3 Kinetic . | . . . . . . Secondary . | . . . . . . Self-Inflicted Damage 245 | . . 70 39 40 96 Shots 6 | . . 2 1 1 2 Rammed 9 | . . . 8 1 . Targets Rammed 11 | . . . 8 3 . Kicked . | . . . . . . Crushed 2 | . . . . 2 . Highest Temperature 383 | . 128 316 260 383 228 Average Temperature 76 | . 51 122 49 109 51 Received Heat Transfer 1435 | . 186 237 780 192 40 Effects 4 | . . . . 4 . Energy Bleed 1 | . . . . 1 . Interference 2 | . . . . 2 . Damage (minor) 1 | . . . . 1 . Siege Activations . | . . . . . . Robots Corrupted 1 | . . . 1 . . Combat Hostiles . | . . . . . . Parts Fried 2 | . . . 2 . . Impact Corruptions 10 | . . . 1 . 9 Robots Melted 2 | . . 1 1 . . Combat Hostiles 2 | . . 1 1 . . Parts Melted 23 | . 2 . 21 . . Heat Transferred 7379 | . 555 962 5476 148 238 Parts Sabotaged . | . . . . . . Parts Stolen . | . . . . . . Parts Stripped . | . . . . . . Power Chain Reactions . | . . . . . . Alert | -11 -10 -10 -9 -9 -9 ------- Run | Yrd Mat Min Mat Min Exi Peak Influence 866 | 20 258 220 866 500 . Initial 337 | . 13 8 39 337 . Average 235 | 9 51 109 389 245 . Maximum Alert Level 3 | . 1 1 3 2 . Low Security (%) 60 | 100 94 97 39 39 . Level 1 17 | . 5 2 6 55 . Level 2 16 | . . . 38 4 . Level 3 6 | . . . 15 . . Level 4 . | . . . . . . Level 5 . | . . . . . . High Security . | . . . . . . Max Security . | . . . . . . Squads Dispatched 9 | . 1 . 7 1 . Investigation 3 | . . . 3 . . Extermination . | . . . . . . Reinforcement 5 | . 1 . 3 1 . Assault 1 | . . . 1 . . Garrison . | . . . . . . Intercept . | . . . . . . Searches Triggered . | . . . . . . Construction Impeded 2 | . . . 1 1 . Haulers Reinforced . | . . . . . . Active Scanning Responses . | . . . . . . Cargo Convoy Interrupts . | . . . . . . Stealth | -11 -10 -10 -9 -9 -9 --------- Run | Yrd Mat Min Mat Min Exi Distress Signals 7 | . 2 . 5 . . Communications Jammed . | . . . . . . Distress Signals . | . . . . . . Times Spotted 138 | . 23 19 72 16 8 Peak Tracking Total 9 | . 4 5 6 3 9 Tactical Retreats 8 | . 3 . 3 2 . Traps | -11 -10 -10 -9 -9 -9 ------- Run | Yrd Mat Min Mat Min Exi Traps Triggered 2 | . 1 . 1 . . Indirectly . | . . . . . . Trap Hack Attempts . | . . . . . . Triggered . | . . . . . . Disarmed . | . . . . . . Reprogrammed . | . . . . . . Reused . | . . . . . . Traps Extracted . | . . . . . . Installed 3 | . . . . 3 . Triggered . | . . . . . . Machines | -11 -10 -10 -9 -9 -9 ---------- Run | Yrd Mat Min Mat Min Exi Machines Disabled 10 | . . 2 1 2 5 Max in Single Turn 1 | . . 1 1 1 1 Machines Repaired . | . . . . . . Machines Dismantled . | . . . . . . Machines Sabotaged . | . . . . . . Overloaded Fab Kills . | . . . . . . Hacking | -11 -10 -10 -9 -9 -9 --------- Run | Yrd Mat Min Mat Min Exi Machines Accessed 18 | . 7 . 11 . . Terminals 12 | . 5 . 7 . . Fabricators . | . . . . . . Repair Stations 2 | . . . 2 . . Recycling Units 4 | . 2 . 2 . . Scanalyzers . | . . . . . . Garrison Access . | . . . . . . Total Hacks 49 | . 20 . 29 . . Successful 20 | . 4 . 16 . . Failed 29 | . 16 . 13 . . Catastrophic 6 | . 2 . 4 . . Database Lockouts . | . . . . . . Manual 36 | . 16 . 18 . 2 Terminals 33 | . 15 . 18 . . Fabricators . | . . . . . . Repair Stations 7 | . . . 7 . . Recycling Units 9 | . 5 . 4 . . Scanalyzers . | . . . . . . Garrison Access . | . . . . . . Terminal Hacks 6 | . 2 . 4 . . Robot Analysis 4 | . 2 . 2 . . Branch Access Points 1 | . . . 1 . . Locate Traps 1 | . . . 1 . . Fabricator Hacks . | . . . . . . Repair Station Hacks 6 | . . . 6 . . Scan Component 3 | . . . 3 . . Repair 3 | . . . 3 . . Recycling Unit Hacks 2 | . 1 . 1 . . Retrieve Components 2 | . 1 . 1 . . Scanalyzer . | . . . . . . Garrison Access Hacks . | . . . . . . Unauthorized Hacks 6 | . 1 . 5 . . Terminals 6 | . 1 . 5 . . Assimilate 1 | . . . 1 . . Botnet 3 | . . . 3 . . Operators 2 | . 1 . 1 . . Fabricators . | . . . . . . Repair Stations . | . . . . . . Recycling Units . | . . . . . . Scanalyzers . | . . . . . . Garrison Access . | . . . . . . Data Cores Recovered 1 | . . . 1 . . Used . | . . . . . . Hacking Detections 16 | . 6 . 10 . . Full Trace Events 3 | . 1 . 2 . . Feedback Events . | . . . . . . Feedback Blocked . | . . . . . . Robot Schematics Acquired . | . . . . . . Robots Built . | . . . . . . Authchips . | . . . . . . Time . | . . . . . . Total Robot Build Rating . | . . . . . . Part Schematics Acquired . | . . . . . . Parts Built . | . . . . . . Authchips . | . . . . . . Time . | . . . . . . Total Part Build Rating . | . . . . . . Parts Repaired 3 | . . . 3 . . Time 96 | . . . 96 . . Parts Recycled . | . . . . . . Recycled Matter . | . . . . . . Retrieved Matter . | . . . . . . Retrieved Components 4 | . 2 . 2 . . Parts Scanalyzed . | . . . . . . Part Schematics Acquired . | . . . . . . Parts Damaged . | . . . . . . Bothacking | -11 -10 -10 -9 -9 -9 ------------ Run | Yrd Mat Min Mat Min Exi Used RIF Installer . | . . . . . . Robots Hacked 2 | . . . . . 2 Non-combat 1 | . . . . . 1 Combat 1 | . . . . . 1 Robot Hacks Applied 2 | . . . . . 2 parse_system 2 | . . . . . 2 Relay Couplers Released . | . . . . . . Fabnet Peak Effective % . | . . . . . . Robots Rewired . | . . . . . . Allies Hacked . | . . . . . . Hacks Repelled . | . . . . . . Allies | -11 -10 -10 -9 -9 -9 -------- Run | Yrd Mat Min Mat Min Exi Total Allies 1 | . . . . 1 . Largest Group 1 | . . . . 1 . Highest-Rated Group 31 | . . . . 31 . Highest-Rated Ally 31 | . . . . 31 . Total Orders . | . . . . . . Ally Attacks . | . . . . . . Total Damage . | . . . . . . Kills . | . . . . . . Allies Corrupted . | . . . . . . Allies Melted . | . . . . . . Intel | -11 -10 -10 -9 -9 -9 ------- Run | Yrd Mat Min Mat Min Exi Robot Analysis Total 4 | . 2 . 2 . . Derelict Logs Recovered 4 | . . 2 . 2 . Drone Launches . | . . . . . . Drone Recoveries . | . . . . . . Exploration | -11 -10 -10 -9 -9 -9 ------------- Run | Yrd Mat Min Mat Min Exi Turns Passed 12967 | 154 2517 1334 4120 2644 2198 Spaces Moved 4151 | 73 719 664 1321 866 508 Core 65 | 3 . . . . 62 Treads 2973 | 70 186 84 1321 866 446 Legs . | . . . . . . Wheels 1113 | . 533 580 . . . Hover . | . . . . . . Flight . | . . . . . . Fastest Speed 50 | 50 80 140 240 240 240 Average Speed 232 | 155 161 168 240 240 393 Slowest Speed 1500 | 160 320 320 320 240 1500 Overloaded Moves . | . . . . . . Propulsion Burnouts . | . . . . . . Robots Hopped . | . . . . . . Cave-ins Triggered . | . . . . . . Exploration Rate (%) 72 | 6 82 94 92 98 60 Regions Visited 5 Branch Regions 3 Pre-discovered Areas 1 | . . 1 . . . Known Exits Taken 2 | . . . 1 1 . Unknown Exits Taken 3 | 1 1 1 . . . Scrap Searched 3 | . . 1 . 2 . Spaces Dug 35 | . . . . 35 . Terrain Destroyed 235 | . 18 62 60 77 18 Melee . | . . . . . . Projectile 77 | . . . 6 71 . AOE 158 | . 18 62 54 6 18 Terrain Rammed . | . . . . . . Walls Destroyed . | . . . . . . Machines Disabled . | . . . . . . Actions | -11 -10 -10 -9 -9 -9 --------- Run | Yrd Mat Min Mat Min Exi Total 6765 | 95 1947 825 2000 1283 615 Wait 1837 | . 1102 95 390 245 5 Move 4146 | 72 718 663 1320 865 508 Hop . | . . . . . . Pick Up 68 | 5 14 5 37 6 1 Fast Attach 30 | 7 . . 13 7 3 Attach 23 | . . 4 6 . 13 Detach 3 | . . . . 1 2 Swap 129 | 2 40 31 32 14 10 Drop 73 | . 3 . 51 17 2 Fire 398 | 9 70 27 143 122 27 Melee 42 | . . . . . 42 Ram . | . . . . . . Kick . | . . . . . . Crush 11 | . . . 8 3 . Escape Stasis . | . . . . . . Rewire 2 | . . . . . 2 Trap 3 | . . . . 3 . Miscellaneous . | . . . . . . Route ------- -11/Scrapyard -10/Materials (discovered 4 exits: *Mat x2 / [*Min x2]) -10/Mines (discovered 2 exits: *Mat x2) -9/Materials (discovered 3 exits: [*Mat x2] / *Min) -9/Mines (discovered 3 exits: [*Mat x2] / *Exi) -9/Exiles (discovered 1 exit: [*Min]) History --------- Turn | Location | Event 16 | -11/Scrapyard | Discovered new exit (range 16) 155 | -11/Scrapyard | Entered Materials 219 | -10/Materials | Discovered new exit (range 16) 279 | -10/Materials | Discovered new exit (range 15) 388 | -10/Materials | Build established: Mutant 852 | -10/Materials | Discovered new exit (range 9) 2187 | -10/Materials | Discovered new exit (range 14) 2672 | -10/Materials | Entered Mines 2823 | -10/Mines | Core integrity fell below 50% 2866 | -10/Mines | Received a Rocket Launcher from a helpful Derelict 3038 | -10/Mines | Learned location of Zion (-6) 3043 | -10/Mines | Learned Materials stockpile data 3150 | -10/Mines | Discovered new exit (range 8) 3155 | -10/Mines | Build established: Scavenger-Mutant 3253 | -10/Mines | Excavation squad dispatched 3253 | -10/Mines | A large section of the Mines collapsed 3471 | -10/Mines | Discovered new exit (range 15) 3972 | -10/Mines | Build established: Mutant 4006 | -10/Mines | Entered Materials 4006 | -9/Materials | Evolved 2 slots: Propulsion x1, Utility x1 4291 | -9/Materials | Build established: Scavenger-Mutant 5238 | -9/Materials | Repaired Rocket Launcher 5460 | -9/Materials | Discovered new exit (range 5) 5734 | -9/Materials | Discovered new exit (range 9) 6762 | -9/Materials | Discovered new exit (range 8) 6808 | -9/Materials | Repaired Imp. Treads 7192 | -9/Materials | Identified exit to Mines 7203 | -9/Materials | Build established: Mutant 8006 | -9/Materials | First assault squad dispatched 8016 | -9/Materials | Repaired Cooling System 8126 | -9/Materials | Entered Mines 8179 | -9/Mines | A weapon hastily lodged in a ceiling crevice suddenly fell to the ground 8828 | -9/Mines | Deemed a non-threat by the Exiles lab entrance 8831 | -9/Mines | Discovered new exit (range 5) 8990 | -9/Mines | Discovered new exit (range 6) 9209 | -9/Mines | Learned 8 Materials zone layouts 9219 | -9/Mines | Found a hidden stash of uninstalled traps 9335 | -9/Mines | Received a Mining Laser from a helpful Derelict 9362 | -9/Mines | Discovered new exit (range 7) 9581 | -9/Mines | Learned Materials security intel 9600 | -9/Mines | Found a damaged Exp. Sensor Array with a note attached 9605 | -9/Mines | Found Prototype Device 9606 | -9/Mines | Identified Exp. Sensor Array 9660 | -9/Mines | Build established: Scavenger-Mutant 10767 | -9/Mines | Identified exit to Exiles 10770 | -9/Mines | Entered Exiles 10830 | -9/Exiles | Met 8R-AWN 10871 | -9/Exiles | Met EX-HEX 10955 | -9/Exiles | Met EX-BIN 11345 | -9/Exiles | Met EX-DEC 11633 | -9/Exiles | Discovered new exit (range 14) 11816 | -9/Exiles | Attacked by the Exiles 11841 | -9/Exiles | Core integrity fell below 50% 11876 | -9/Exiles | Destroyed 7 combat bots 11983 | -9/Exiles | Core integrity fell below 20% 12013 | -9/Exiles | Lost 14 parts (1p7n3u3w) 12072 | -9/Exiles | Lost 4 parts (1p2u1w) 12115 | -9/Exiles | Build established: Mutant 12968 | -9/Exiles | Destroyed by DAS Turret with DAS Cannon Last Messages --------------- lost. 12093_ Acquired Plasma Cutter. 12105_ The unstable cave ceiling collapses. 12167_ System corrupted: Energy discharge (-31). 12260_ Acquired 2 matter. 12264_ Y23 OA&<|VJ1OS 12688_ |OC RN/FGBJBIED7RAVMEGN| 12783_ System corrupted: Substantial component data lost. 12825_ &LW%U3U6M0%DKL:RCN0V:ZLWG1KQG6CY3ZQ5 12862_ System corrupted: Component data lost. 12898_ System corrupted: Energy discharge (-27). Map ----- +----------------------------------------------------+ | ???????????????????????#!!! """"""#??? | | ???????????????????????#! ][ " | | ?????????" ???????????#" " ##?? | | ????????? "??????????#" " " #??? | | ?????????" "?????????## ### # " #??? | | ?????????# #????????## " ### #### """""" #?? | | ###????### ###?###### " "#####?# # # | | """#####X# #"###""""""" #"#?????# #?#?? | | """""" " "" ##???###########???? | | "" """ " #####"""" """"##??? | | " " " """ """"##?? | | "" " #?? | | " """#?? | | " "#?? | | # " "##? | | ?#" ""## | | ?#""" """""" """ | | ##" ######""" " | | #"" ""##????#####""" | | #""" """##?????????##""" | | """ """##???????????#"""" | | """ ""#???????????##"" | | "" ########??####"""" | | """ ##aaa####""" | | "" """" | | #"" @ | | #"""" | | ## % " | | ?#" " "" """ " | | ?#"""" ""## ##""" " " ""#" " | | ?#"" ""#### ######""" """##"""""""# | | ?#" """"##??# #????###""""########### | | ?#""" """#??## ####???######?????????? | | ?## ""##??#! "!#??????????????????? | | ??#"" """##???#" !#??????????????????? | | ??##""" ##????#" "#??????????????????? | | ???##"""" ##?????#!!""!"#??????????????????? | | ????### #??????########??????????????????? | | ??????##### ##????????????????????????????????? | | ??????????## #?????????????????????????????????? | | ???????????# #?????????????????????????????????? | | ???????????# #?????????????????????????????????? | | ???????????? #?????????????????????????????????? | | ????????????? #?????????????????????????????????? | | ?????????????????????????????????????????????????? | | ?????????????????????????????????????????????????? | | ?????????????????????????????????????????????????? | | ?????????????????????????????????????????????????? | | ?????????????????????????????????????????????????? | | ?????????????????????????????????????????????????? | +----------------------------------------------------+ Best States ------------- Heat Dissipation 50 Energy Generation 18 Energy Capacity 280 Matter Stores 300 Matter Capacity 300 Sight Range 16 Robot Scan Range 20 Terrain Scan Density 10 Armor Coverage 525 Resistance: TH 10 Evasion (%) 44 Recoil Reduction 3 Item Schematics ----------------- None Robot Schematics ------------------ None Fabricated ------------ Nothing Alien Tech Used ----------------- None Achievements -------------- None Challenges ------------ None Game ------ Seed OmegaVampiricStorage Manual? 0 Play Time 01:31:50 Cumulative 98.7 hours Start 2024.08.26 @ 15:48:20 End 2024.08.26 @ 22:55:16 Sessions 11 Manual Loads 0 Difficulty Rogue Special Mode None Game No. 67 Rogue 54 Adventurer 13 Explorer 0 Win Type - Total 1 Types 1/0/0/0/0/0/0/0/0 Lore% 36 Gallery% 52 Achievement% 44 Wizard Run 0 Options --------- Layout 2 ASCII 0 Keyboard 1 Movement Numpad Keybinds 0 Fullscreen 2 Font 16/Swanston Map View 55x47 Zoom Use 0% Tactical HUD 1 Map Filters NONE Filters NONE Steam 0 RUN: cfdb2675-b3f5-4291-8e9d-bb832a3d3ba8